fUST/lending_fUST_20240704
["ID","MTS","AMOUNT","RATE_DAILY","PERIOD"]
[331086603,1720072248027,-151.0,0.00015616,2]
[331086604,1720072248037,-151.0,0.00015616,2]
[331086605,1720072248046,-151.0,0.00015616,2]
[331086606,1720072248056,-151.0,0.00015616,2]
[331086607,1720072248065,-4700.68471355,0.00015616,2]
[331086608,1720072248075,-4700.68471355,0.00015616,2]
[331086609,1720072248084,-4700.68471355,0.00015616,2]
[331086610,1720072248094,-4700.68471355,0.00015616,2]
[331086611,1720072248102,-4700.68471355,0.00015616,2]
[331086612,1720072248111,-4700.68471355,0.00015616,2]
[331086613,1720072248121,-4700.68471355,0.00015616,2]
[331086614,1720072248130,-4700.68471355,0.00015616,2]
[331086615,1720072248139,-4700.68471355,0.00015616,2]
[331086616,1720072248149,-4700.68471355,0.00015616,2]
[331086617,1720072248158,-4700.68471355,0.00015616,2]
[331086618,1720072248167,-4700.68471355,0.00015616,2]
[331086619,1720072248176,-4700.68471355,0.00015616,2]
[331086620,1720072248186,-4700.68471355,0.00015616,2]
[331086621,1720072248195,-4700.68471355,0.00015616,2]
[331086622,1720072248204,-4700.68471355,0.00015616,2]
[331086623,1720072248213,-4700.68471355,0.00015616,2]
[331086624,1720072248223,-4700.68471355,0.00015616,2]
[331086625,1720072248231,-4700.68471355,0.00015616,2]
[331086626,1720072248240,-4700.68471355,0.00015616,2]
[331086627,1720072248249,-4700.68471355,0.00015616,2]
[331086628,1720072248258,-4700.68471355,0.00015616,2]
[331086629,1720072248267,-4700.68471355,0.00015616,2]
[331086630,1720072248276,-4700.68471355,0.00015616,2]
[331086631,1720072248286,-4700.68471355,0.00015616,2]
[331086632,1720072248295,-4700.68471355,0.00015616,2]
[331086633,1720072248304,-4700.68471355,0.00015616,2]
[331086634,1720072248313,-4700.68471355,0.00015616,2]
[331086635,1720072248322,-4700.68471355,0.00015616,2]
[331086636,1720072248331,-4700.68471355,0.00015616,2]
[331086637,1720072248340,-4700.68471355,0.00015616,2]
[331086638,1720072248349,-4700.68471355,0.00015616,2]
[331086639,1720072248358,-4700.68471355,0.00015616,2]
[331086640,1720072248367,-4700.68471355,0.00015616,2]
[331086641,1720072248376,-4700.68471355,0.00015616,2]
[331086642,1720072248385,-4700.68471355,0.00015616,2]
[331086643,1720072248394,-4700.68471355,0.00015616,2]
[331086644,1720072248403,-4700.68471355,0.00015616,2]
[331086645,1720072248411,-4700.68471355,0.00015616,2]
[331086646,1720072248420,-4700.68471355,0.00015616,2]
[331086647,1720072248429,-4700.68471355,0.00015616,2]
[331086648,1720072248439,-4700.68471355,0.00015616,2]
[331086649,1720072248448,-4700.68471355,0.00015616,2]
[331086650,1720072248457,-4700.68471355,0.00015616,2]
[331086651,1720072248466,-4700.68471355,0.00015616,2]
[331086652,1720072248477,-4700.68471355,0.00015616,2]
[331086653,1720072248487,-4700.68471355,0.00015616,2]
[331086654,1720072248498,-4700.68471355,0.00015616,2]
[331086655,1720072248506,-4700.68471355,0.00015616,2]
[331086656,1720072248516,-4700.68471355,0.00015616,2]
[331086657,1720072248525,-4664.52560037,0.00015616,2]
[331086658,1720072248535,-4664.52560037,0.00015616,2]
[331086659,1720072248544,-4664.52560037,0.00015616,2]
[331086660,1720072248553,-4664.52560037,0.00015616,2]
[331086661,1720072248563,-4664.52560037,0.00015616,2]
[331086662,1720072248573,-4664.52560037,0.00015616,2]
[331086663,1720072248588,-4664.52560037,0.00015616,2]
[331086664,1720072248597,-4664.52560037,0.00015616,2]
[331086665,1720072248607,-4664.52560037,0.00015616,2]
[331086666,1720072248617,-4664.52560037,0.00015616,2]
[331086667,1720072248626,-4664.52560037,0.00015616,2]
[331086668,1720072248635,-4664.52560037,0.00015616,2]
[331086669,1720072248644,-4664.52560037,0.00015616,2]
[331086670,1720072248655,-4664.52560037,0.00015616,2]
[331086671,1720072248664,-4664.52560037,0.00015616,2]
[331086672,1720072248673,-4664.52560037,0.00015616,2]
[331086673,1720072248682,-4664.52560037,0.00015616,2]
[331086674,1720072248691,-4664.52560037,0.00015616,2]
[331086675,1720072248700,-4664.52560037,0.00015616,2]
[331086676,1720072248709,-4664.52560037,0.00015616,2]
[331086677,1720072248718,-4664.52560037,0.00015616,2]
[331086678,1720072248729,-4664.52560037,0.00015616,2]
[331086679,1720072248737,-4664.52560037,0.00015616,2]
[331086680,1720072248746,-4298.35101098,0.00015616,2]
[331086681,1720072248977,-366.17458939,0.00015616,2]
[331086682,1720072248986,-4664.52560037,0.00015616,2]
[331086683,1720072248996,-4664.52560037,0.00015616,2]
[331086684,1720072249006,-4664.52560037,0.00015616,2]
[331086685,1720072249015,-4664.52560037,0.00015616,2]
[331086686,1720072249025,-151.0,0.00015616,2]
[331086687,1720072249034,-4611.51962763,0.00015616,2]
[331086688,1720072249043,-4611.51962763,0.00015616,2]
[331086689,1720072249052,-1183.67640552,0.00015616,2]
[331086690,1720072249063,-3427.84322211,0.00015616,2]
[331086691,1720072249072,-4611.51962763,0.00015616,2]
[331086692,1720072249081,-4611.51962763,0.00015616,2]
[331086693,1720072249090,-4611.51962763,0.00015616,2]
[331086694,1720072249099,-4320.96888146,0.00015616,2]
[331086695,1720072249266,-526.86,0.00014232,2]
[331086696,1720072249275,-526.86,0.00014506,2]
[331086697,1720072249284,-526.86,0.0001478,2]
[331086698,1720072249293,-526.86,0.00015054,2]
[331086699,1720072249303,-526.86,0.00015328,2]
[331086700,1720072249311,-526.86,0.00015602,2]
[331086701,1720072249321,-290.55074617,0.00015616,2]
[331086702,1720072249330,-4611.51962763,0.00015616,2]
[331086703,1720072249339,-4611.51962763,0.00015616,2]
[331086704,1720072249348,-4611.51962763,0.00015616,2]
[331086705,1720072249357,-4611.51962763,0.00015616,2]
[331086706,1720072249366,-151.0,0.00015616,2]
[331086707,1720072249375,-151.0,0.00015616,2]
[331086708,1720072249384,-151.0,0.00015616,2]
[331086709,1720072249393,-151.0,0.00015616,2]
[331086710,1720072249402,-151.0,0.00015616,2]
[331086711,1720072249411,-151.0,0.00015616,2]
[331086712,1720072249421,-151.0,0.00015616,2]
[331086713,1720072249433,-151.0,0.00015616,2]
[331086714,1720072249442,-5243.54,0.00015625,2]
[331086715,1720072249451,-916.81,0.00015625,2]
[331086716,1720072249460,-570.05,0.00015625,2]
[331086717,1720072249470,-794.11,0.00015625,2]
[331086718,1720072249480,-4452.92,0.00015625,2]
[331086719,1720072249489,-2441.77,0.00015625,2]
[331086720,1720072249498,-601.95749671,0.00015811,2]
[331086721,1720072249508,-500.0,0.00015876,2]
[331086722,1720072249517,-1922.96,0.00015876,2]
[331086723,1720072249528,-972.63,0.00015876,2]
[331086724,1720072249538,-696.24,0.00015876,2]
[331086725,1720072249547,-500.0,0.00015876,2]
[331086726,1720072249555,-151.0,0.00015876,2]
[331086727,1720072249565,-3387.21,0.00015876,2]
[331086728,1720072249575,-500.0,0.00015876,2]
[331086729,1720072249587,-1691.43,0.00015876,2]
[331086730,1720072249597,-151.0,0.00015876,2]
[331086731,1720072249606,-500.0,0.00015876,2]
[331086732,1720072249615,-10013.52,0.00015876,2]
[331086733,1720072249624,-1210.6,0.00015876,2]
[331086734,1720072249633,-151.0,0.00015876,2]
[331086735,1720072249642,-1088.81,0.00015876,2]
[331086736,1720072249651,-2266.37,0.00015876,2]
[331086737,1720072249662,-500.0,0.00015876,2]
[331086738,1720072249670,-732.58,0.00015876,2]
[331086739,1720072249679,-3458.03,0.00015876,2]
[331086740,1720072249688,-151.0,0.00015876,2]
[331086741,1720072249697,-500.0,0.00015876,2]
[331086742,1720072249705,-151.0,0.00015876,2]
[331086743,1720072249715,-151.0,0.00015876,2]
[331086744,1720072249723,-573.14,0.00015876,2]
[331086745,1720072249732,-500.0,0.00015876,2]
[331086746,1720072249741,-500.0,0.00015876,2]
[331086747,1720072249749,-500.0,0.00015876,2]
[331086748,1720072249758,-526.86,0.00015876,2]
[331086749,1720072249768,-902.65,0.00015878,2]
[331086750,1720072249777,-500.0,0.00015878,2]
[331086751,1720072249786,-500.0,0.00015878,2]
[331086752,1720072249795,-1290.86,0.00015878,2]
[331086753,1720072249804,-500.0,0.00015878,2]
[331086754,1720072249813,-500.0,0.00015878,2]
[331086755,1720072249822,-746.49,0.00015878,2]
[331086756,1720072249833,-1084.07,0.00015878,2]
[331086757,1720072249843,-500.0,0.00015878,2]
[331086758,1720072249852,-500.0,0.00015878,2]
[331086759,1720072249860,-638.65,0.00015878,2]
[331086760,1720072249869,-553.11,0.00015878,2]
[331086761,1720072249878,-500.0,0.00015878,2]
[331086762,1720072249887,-500.0,0.00015878,2]
[331086763,1720072249896,-500.0,0.00015878,2]
[331086764,1720072249906,-500.0,0.00015878,2]
[331086765,1720072249915,-500.0,0.00015878,2]
[331086766,1720072249923,-530.25,0.00015878,2]
[331086767,1720072249932,-500.0,0.00015878,2]
[331086768,1720072249941,-500.0,0.00015878,2]
[331086769,1720072249950,-500.0,0.00015878,2]
[331086770,1720072249960,-500.0,0.00015878,2]
[331086771,1720072249969,-500.0,0.00015878,2]
[331086772,1720072249980,-511.62327082,0.00015878,2]
[331086773,1720072249989,-500.0,0.00015878,2]
[331086774,1720072249998,-2075.83,0.00015878,2]
[331086775,1720072250007,-700.33,0.00015878,2]
[331086776,1720072250017,-151.0,0.00015878,2]
[331086777,1720072250027,-500.0,0.00015878,2]
[331086778,1720072250036,-745.51,0.00015878,2]
[331086779,1720072250046,-500.0,0.00015878,2]
[331086780,1720072250055,-774.79,0.00015878,2]
[331086781,1720072250063,-583.74,0.00015878,2]
[331086782,1720072250072,-500.0,0.00015878,2]
[331086783,1720072250081,-500.0,0.00015878,2]
[331086784,1720072250091,-500.0,0.00015878,2]
[331086785,1720072250100,-500.0,0.00015878,2]
[331086786,1720072250109,-1002.68,0.00015878,2]
[331086787,1720072250118,-7954.05,0.00015878,2]
[331086788,1720072250127,-500.0,0.00015878,2]
[331086789,1720072250136,-500.0,0.00015878,2]
[331086790,1720072250144,-607.61,0.00015887,2]
[331086791,1720072250154,-500.0,0.00015887,2]
[331086792,1720072250163,-500.0,0.00015887,2]
[331086793,1720072250172,-500.0,0.00015887,2]
[331086794,1720072250181,-500.0,0.00015887,2]
[331086795,1720072250190,-500.0,0.00015887,2]
[331086796,1720072250199,-500.0,0.00015887,2]
[331086797,1720072250208,-500.0,0.00015887,2]
[331086798,1720072250216,-320.32768437,0.00015887,2]
[331086799,1720072250226,-500.0,0.00015887,2]
[331086800,1720072250235,-500.0,0.00015887,2]
[331086801,1720072250244,-519.44,0.00015887,2]
[331086802,1720072250253,-500.0,0.00015887,2]
[331086803,1720072250262,-500.0,0.00015887,2]
[331086804,1720072250271,-588.72205016,0.00015887,2]
[331086805,1720072250279,-3522.09,0.00015887,2]
[331086806,1720072250288,-500.0,0.00015887,2]
[331086807,1720072250297,-500.0,0.00015887,2]
[331086808,1720072250307,-500.0,0.00015887,2]
[331086809,1720072250315,-500.0,0.00015887,2]
[331086810,1720072250325,-542.04,0.00015887,2]
[331086811,1720072250334,-721.25,0.00015887,2]
[331086812,1720072250343,-500.0,0.00015887,2]
[331086813,1720072250351,-500.0,0.00015887,2]
[331086814,1720072250360,-646.83,0.00015887,2]
[331086815,1720072250369,-522.7,0.00015887,2]
[331086816,1720072250378,-500.0,0.00015887,2]
[331086817,1720072250387,-671.47,0.00015887,2]
[331086818,1720072250396,-500.0,0.00015887,2]
[331086819,1720072250405,-518.87,0.00015887,2]
[331086820,1720072250414,-500.0,0.00015887,2]
[331086821,1720072250423,-264.42206452,0.00015887,2]
[331086822,1720072250431,-500.0,0.00015887,2]
[331086823,1720072250440,-432.98906868,0.00015887,2]
[331086824,1720072250453,-67.01093132,0.00015887,2]
[331086825,1720072250464,-299.17999681,0.00015887,2]
[331086826,1720072250475,-200.82000319,0.00015887,2]
[331086827,1720072250484,-500.0,0.00015887,2]
[331086828,1720072250493,-500.0,0.00015887,2]
[331086829,1720072250502,-500.0,0.00015887,2]
[331086830,1720072250511,-500.0,0.00015887,2]
[331086831,1720072250520,-151.0,0.00015887,2]
[331086832,1720072250530,-500.0,0.00015887,2]
[331086833,1720072250538,-500.0,0.00015887,2]
[331086834,1720072250547,-500.0,0.00015887,2]
[331086835,1720072250556,-500.0,0.00015887,2]
[331086836,1720072250565,-500.0,0.00015887,2]
[331086837,1720072250574,-500.0,0.00015887,2]
[331086838,1720072250589,-151.0,0.00015887,2]
[331086839,1720072250598,-500.0,0.00015889,2]
[331086840,1720072250607,-795.36794615,0.00015889,2]
[331086841,1720072250983,236.8993387,0.00013721,2]
[331086842,1720072251006,15569.0091702,0.00013721,2]
[331086871,1720073145110,-156.18492055,0.00014123,2]
[331086872,1720073145129,-110.07092209,0.00014221,2]
[331086875,1720073227106,-300.0,0.00014221,2]
[331086876,1720073227136,-300.0,0.00014221,2]
[331086877,1720073227165,-262.5741583,0.00014221,2]
[331086878,1720073227194,-74.93271567,0.00014221,2]
[331086879,1720073234121,-425.06728433,0.00014221,2]
[331086880,1720073234145,-320.32527441,0.00014221,2]
[331086881,1720073234173,-1140.50047029,0.00014221,2]
[331086882,1720073234199,-500.0,0.00014222,2]
[331086883,1720073234226,-989.12421357,0.00014222,2]
[331086884,1720073239113,-376.07578643,0.00014222,2]
[331086885,1720073239136,-2455.76067738,0.00014222,2]
[331086886,1720073240104,-999.30628323,0.00014222,2]
[331086887,1720073242168,-151.0,0.00014222,2]
[331086894,1720073407656,171.2005709,0.00014,2]
[331086895,1720073407681,9828.7994291,0.00014,2]
[331086896,1720073424568,10000.0,0.00014,2]
[331086933,1720073432163,-309.7057795,0.00014055,2]
[331086936,1720073432172,-184.77709126,0.00014123,2]
[331086937,1720073432182,-156.18492054,0.00014123,2]
[331086939,1720073432191,-300.0,0.0001422,2]
[331086941,1720073432201,-500.0,0.00014221,2]
[331086944,1720073432210,-1308.31,0.00014221,2]
[331086946,1720073432219,-7989.8,0.00014221,2]
[331086948,1720073432228,-972.03,0.00014221,2]
[331086949,1720073432238,-1814.72,0.00014221,2]
[331086951,1720073432247,-500.0,0.00014221,2]
[331086953,1720073432257,-500.0,0.00014221,2]
[331086956,1720073432266,-500.0,0.00014221,2]
[331086958,1720073432275,-1326.39,0.00014222,2]
[331086960,1720073432286,-1508.69,0.00014222,2]
[331086962,1720073432295,-773.3,0.00014222,2]
[331086964,1720073432304,-568.17,0.00014222,2]
[331086966,1720073432313,-500.0,0.00014222,2]
[331086968,1720073432322,-1518.86493161,0.00014222,2]
[331086972,1720073432350,-1193.72138822,0.00014222,2]
[331087074,1720073438490,-500.0,0.00014221,2]
[331087075,1720073438500,-38.39368017,0.00014222,2]
[331087077,1720073438510,-500.0,0.00014222,2]
[331087079,1720073438520,-500.0,0.00014222,2]
[331087081,1720073438530,-500.0,0.00014222,2]
[331087083,1720073438540,-270.79874713,0.00014222,2]
[331087085,1720073438551,-899.18,0.00014222,2]
[331087092,1720073438712,-607.16,0.00014222,2]
[331087093,1720073438727,-3012.99,0.00014222,2]
[331087094,1720073438737,-500.0,0.00014222,2]
[331087095,1720073438747,-9530.99422737,0.00014222,2]
[331087096,1720073438760,-2460.31682731,0.00014222,2]
[331087097,1720073438772,-797.17277758,0.00014222,2]
[331087098,1720073438785,-14417.27168334,0.00014222,2]
[331087099,1720073438795,-504.19345201,0.00014223,2]
[331087100,1720073438804,-502.45867157,0.00014223,2]
[331087101,1720073438814,-502.09704005,0.00014223,2]
[331087102,1720073438826,-506.16585325,0.00014223,2]
[331087103,1720073438836,-691.64,0.00014223,2]
[331087104,1720073438845,-500.0,0.00014223,2]
[331087105,1720073438855,-500.0,0.00014223,2]
[331087106,1720073438864,-500.0,0.00014223,2]
[331087107,1720073438874,-500.0,0.00014223,2]
[331087108,1720073438884,-236.8993387,0.00014223,2]
[331087109,1720073438895,-1051.33,0.00014223,2]
[331087110,1720073438905,-500.0,0.00014223,2]
[331087111,1720073438915,-500.0,0.00014223,2]
[331087112,1720073438925,-500.0,0.00014223,2]
[331087113,1720073438938,-613.62,0.00014223,2]
[331087114,1720073438948,-889.27,0.00014223,2]
[331087115,1720073438958,-500.0,0.00014223,2]
[331087116,1720073438968,-500.0,0.00014223,2]
[331087117,1720073438979,-527.11,0.00014223,2]
[331087118,1720073438989,-500.0,0.00014223,2]
[331087119,1720073438998,-500.0,0.00014223,2]
[331087120,1720073439009,-500.0,0.00014223,2]
[331087121,1720073439019,-474.98140258,0.00014223,2]
[331087122,1720073439030,-500.0,0.00014223,2]
[331087123,1720073439039,-500.0,0.00014223,2]
[331087124,1720073439049,-277.10834094,0.00014223,2]
[331087125,1720073439059,-500.0,0.00014223,2]
[331087126,1720073439070,-500.0,0.00014223,2]
[331087127,1720073439082,-500.0,0.00014223,2]
[331087128,1720073439092,-500.0,0.00014223,2]
[331087129,1720073439103,-500.0,0.00014223,2]
[331087130,1720073439114,-500.0,0.00014223,2]
[331087131,1720073439124,-500.0,0.00014223,2]
[331087132,1720073439135,-500.0,0.00014223,2]
[331087133,1720073439145,-585.76,0.00014223,2]
[331087134,1720073439155,-500.0,0.00014223,2]
[331087135,1720073439166,-500.0,0.00014223,2]
[331087136,1720073439177,-500.0,0.00014223,2]
[331087137,1720073439187,-618.80056488,0.00014223,2]
[331087138,1720073439198,-500.0,0.00014223,2]
[331087139,1720073439208,-500.0,0.00014223,2]
[331087140,1720073439218,-500.0,0.00014223,2]
[331087141,1720073439229,-500.0,0.00014223,2]
[331087142,1720073439242,-500.0,0.00014223,2]
[331087143,1720073439252,-500.0,0.00014223,2]
[331087144,1720073439263,-500.0,0.00014223,2]
[331087145,1720073439274,-500.0,0.00014223,2]
[331087146,1720073439284,-500.0,0.00014223,2]
[331087147,1720073439294,-500.0,0.00014223,2]
[331087148,1720073439304,-500.0,0.00014223,2]
[331087149,1720073439314,-500.0,0.00014223,2]
[331087150,1720073439326,-500.0,0.00014223,2]
[331087151,1720073439337,-500.0,0.00014223,2]
[331087152,1720073439347,-500.0,0.00014223,2]
[331087153,1720073439358,-557.36,0.00014223,2]
[331087154,1720073439368,-500.0,0.00014223,2]
[331087155,1720073439379,-500.0,0.00014223,2]
[331087156,1720073439389,-509.66017468,0.00014223,2]
[331087157,1720073439400,-500.0,0.00014223,2]
[331087158,1720073439410,-500.0,0.00014223,2]
[331087159,1720073439419,-612.53,0.00014223,2]
[331087160,1720073439430,-604.48788169,0.00014223,2]
[331087161,1720073439440,-500.0,0.00014223,2]
[331087162,1720073439451,-500.0,0.00014223,2]
[331087163,1720073439462,-500.0,0.00014223,2]
[331087164,1720073439472,-500.0,0.00014223,2]
[331087165,1720073439482,-500.0,0.00014223,2]
[331087166,1720073439492,-500.0,0.00014223,2]
[331087167,1720073439502,-775.38,0.00014223,2]
[331087168,1720073439512,-500.0,0.00014223,2]
[331087169,1720073439522,-500.0,0.00014223,2]
[331087170,1720073439532,-492.3864458,0.00014223,2]
[331087171,1720073439542,-500.0,0.00014223,2]
[331087172,1720073439552,-500.0,0.00014223,2]
[331087173,1720073439562,-500.0,0.00014223,2]
[331087174,1720073439573,-500.0,0.00014223,2]
[331087175,1720073439583,-500.0,0.00014223,2]
[331087176,1720073439593,-504.76238846,0.00014223,2]
[331087177,1720073439603,-500.0,0.00014223,2]
[331087178,1720073439617,-500.0,0.00014223,2]
[331087179,1720073439627,-500.0,0.00014223,2]
[331087180,1720073439638,-503.76471199,0.00014223,2]
[331087181,1720073439648,-618.44430778,0.00014223,2]
[331087182,1720073439658,-501.14042304,0.00014223,2]
[331087183,1720073439668,-500.0,0.00014223,2]
[331087184,1720073439678,-500.0,0.00014223,2]
[331087185,1720073439688,-500.0,0.00014223,2]
[331087186,1720073439698,-500.0,0.00014223,2]
[331087187,1720073439708,-506.14341322,0.00014223,2]
[331087188,1720073439718,-506.02086059,0.00014223,2]
[331087190,1720073439728,-3011.08,0.00014223,2]
[331087191,1720073439738,-500.0,0.00014223,2]
[331087192,1720073439748,-568.38722603,0.00014223,2]
[331087193,1720073439758,-500.0,0.00014223,2]
[331087194,1720073439768,-500.0,0.00014223,2]
[331087195,1720073439778,-500.0,0.0001423,2]
[331087196,1720073439787,-6141.07,0.0001423,2]
[331087197,1720073439797,-500.0,0.0001423,2]
[331087198,1720073439807,-1556.87,0.0001423,2]
[331087199,1720073439817,-635.75,0.0001423,2]
[331087200,1720073439829,-500.0,0.0001423,2]
[331087201,1720073439839,-500.0,0.0001423,2]
[331087202,1720073439848,-500.0,0.00014231,2]
[331087203,1720073439858,-500.0,0.00014231,2]
[331087204,1720073439867,-500.0,0.00014232,2]
[331087205,1720073439876,-500.0,0.00014232,2]
[331087206,1720073439886,-500.0,0.00014232,2]
[331087207,1720073439895,-502.87740889,0.00014232,2]
[331087208,1720073439905,-500.0,0.00014232,2]
[331087209,1720073439914,-201.87686333,0.00014232,2]
[331087210,1720073439923,-502.40125518,0.00014232,2]
[331087211,1720073439936,-502.26971491,0.00014232,2]
[331087212,1720073439945,-500.0,0.00014232,2]
[331087213,1720073439955,-500.0,0.00014232,2]
[331087214,1720073439965,-502.45728506,0.00014232,2]
[331087216,1720073439977,-500.0,0.00014232,2]
[331087217,1720073439986,-500.0,0.00014232,2]
[331087218,1720073439995,-374.53866042,0.00014232,2]
[331087219,1720073440005,-500.0,0.00014232,2]
[331087220,1720073440017,-507.43195824,0.00014232,2]
[331087221,1720073440027,-500.0,0.00014232,2]
[331087222,1720073440036,-501.7906129,0.00014232,2]
[331087223,1720073440046,-500.0,0.00014232,2]
[331087224,1720073440055,-500.0,0.00014232,2]
[331087225,1720073440065,-500.0,0.00014232,2]
[331087226,1720073440078,-500.0,0.00014232,2]
[331087227,1720073440087,-507.57568741,0.00014232,2]
[331087228,1720073440099,-500.0,0.00014232,2]
[331087229,1720073440109,-442.84673313,0.00014232,2]
[331087231,1720073440119,-500.0,0.00014232,2]
[331087233,1720073440128,-500.0,0.00014232,2]
[331087235,1720073440137,-500.0,0.00014232,2]
[331087237,1720073440147,-505.88675269,0.00014232,2]
[331087238,1720073440156,-500.0,0.00014232,2]
[331087240,1720073440165,-500.0,0.00014232,2]
[331087241,1720073440175,-500.0,0.00014232,2]
[331087242,1720073440184,-500.0,0.00014232,2]
[331087243,1720073440194,-505.77673362,0.00014232,2]
[331087244,1720073440204,-500.0,0.00014232,2]
[331087245,1720073440213,-500.0,0.00014232,2]
[331087247,1720073440222,-500.0,0.00014232,2]
[331087248,1720073440233,-500.0,0.00014232,2]
[331087250,1720073440243,-500.0,0.00014232,2]
[331087252,1720073440252,-215.35728875,0.00014232,2]
[331087254,1720073440261,-500.0,0.00014232,2]
[331087256,1720073440270,-584.73,0.00014232,2]
[331087257,1720073440279,-500.0,0.00014232,2]
[331087258,1720073440288,-500.0,0.00014232,2]
[331087259,1720073440298,-500.0,0.00014232,2]
[331087260,1720073440308,-500.0,0.00014232,2]
[331087261,1720073440317,-500.0,0.00014232,2]
[331087262,1720073440327,-500.0,0.00014232,2]
[331087263,1720073440337,-278.10396211,0.00014232,2]
[331087264,1720073440347,-500.0,0.00014232,2]
[331087266,1720073440356,-500.0,0.00014232,2]
[331087268,1720073440365,-500.0,0.00014232,2]
[331087269,1720073440375,-500.0,0.00014232,2]
[331087271,1720073440384,-503.60499942,0.00014232,2]
[331087273,1720073440393,-500.0,0.00014232,2]
[331087275,1720073440402,-500.0,0.00014232,2]
[331087276,1720073440412,-500.0,0.00014232,2]
[331087277,1720073440421,-500.0,0.00014232,2]
[331087278,1720073440432,-500.0,0.00014232,2]
[331087279,1720073440441,-500.0,0.00014232,2]
[331087280,1720073440451,-500.0,0.00014232,2]
[331087281,1720073440460,-500.0,0.00014232,2]
[331087282,1720073440470,-500.0,0.00014232,2]
[331087283,1720073440479,-513.61,0.00014232,2]
[331087285,1720073440488,-496.79673261,0.00014232,2]
[331087286,1720073440498,-500.0,0.00014232,2]
[331087287,1720073440507,-500.0,0.00014232,2]
[331087288,1720073440516,-176.95698535,0.00014232,2]
[331087289,1720073440525,-500.0,0.00014232,2]
[331087290,1720073440535,-500.0,0.00014232,2]
[331087291,1720073440544,-534.62,0.00014232,2]
[331087292,1720073440553,-500.0,0.00014232,2]
[331087293,1720073440563,-500.0,0.00014232,2]
[331087294,1720073440573,-500.0,0.00014232,2]
[331087295,1720073440582,-500.0,0.00014232,2]
[331087296,1720073440592,-500.0,0.00014232,2]
[331087297,1720073440601,-500.0,0.00014232,2]
[331087298,1720073440610,-500.0,0.00014232,2]
[331087299,1720073440620,-500.0,0.00014232,2]
[331087300,1720073440629,-500.0,0.00014232,2]
[331087301,1720073440638,-504.49121328,0.00014232,2]
[331087302,1720073440648,-505.68399511,0.00014232,2]
[331087303,1720073440657,-500.0,0.00014234,2]
[331087304,1720073440666,-500.0,0.00014234,2]
[331087305,1720073440675,-504.35283484,0.00014234,2]
[331087306,1720073440684,-500.0,0.00014234,2]
[331087307,1720073440693,-500.0,0.00014234,2]
[331087308,1720073440704,-7352.21,0.00014234,2]
[331087309,1720073440713,-4777.69,0.00014234,2]
[331087310,1720073440722,-500.0,0.00014234,2]
[331087311,1720073440732,-27205.7555156,0.00014234,2]
[331087312,1720073440741,-3436.87240487,0.00014243,2]
[331087313,1720073440751,-796.78,0.00014243,2]
[331087314,1720073440761,-500.0,0.00014243,2]
[331087315,1720073440770,-531.62,0.00014243,2]
[331087316,1720073440780,-719.99,0.00014243,2]
[331087317,1720073440789,-4254.14,0.00014243,2]
[331087318,1720073440799,-2304.23,0.00014243,2]
[331087319,1720073440808,-500.0,0.00014244,2]
[331087320,1720073440818,-27205.7555156,0.00014487,2]
[331087321,1720073440828,-413.40404755,0.00014495,2]
[331087322,1720073440838,-1308.31,0.00014495,2]
[331087323,1720073440847,-7989.8,0.00014495,2]
[331087324,1720073440856,-972.03,0.00014495,2]
[331087325,1720073440865,-1814.72,0.00014495,2]